bitfinex/quotes_BTCUSD_20240921
["timestamp","ask_amount","ask_price","bid_price","bid_amount"]
[1726951326295,0.54935954,63248.0,63247.0,0.1043439]
[1726951329132,0.54635954,63248.0,63247.0,0.1043439]
[1726951329550,0.54735954,63248.0,63247.0,0.1043439]
[1726951329943,0.54735762,63248.0,63247.0,0.1043439]
[1726951330605,0.54935762,63248.0,63247.0,0.1043439]
[1726951330812,0.54835762,63248.0,63247.0,0.1043439]
[1726951331022,0.54635762,63248.0,63247.0,0.1043439]
[1726951331743,0.475148,63248.0,63247.0,0.1043439]
[1726951331997,0.476148,63248.0,63247.0,0.1043439]
[1726951332201,0.54735484,63248.0,63247.0,0.1043439]
[1726951336443,0.54734507,63248.0,63247.0,0.1043439]
[1726951341728,0.54734333,63248.0,63247.0,0.1043439]
[1726951344683,0.476148,63248.0,63247.0,0.1043439]
[1726951347229,0.001826,63248.0,63247.0,0.1043439]
[1726951347474,0.04928957,63248.0,63247.0,0.1043439]
[1726951347724,0.20739657,63248.0,63247.0,0.1043439]
[1726951349043,0.001826,63248.0,63247.0,0.1043439]
[1726951349483,0.159933,63248.0,63247.0,0.1043439]
[1726951350805,0.001826,63248.0,63247.0,0.1043439]
[1726951357478,0.159933,63248.0,63247.0,0.1043439]
[1726951357694,0.001826,63248.0,63247.0,0.1043439]
[1726951362526,0.159933,63248.0,63247.0,0.1043439]
[1726951369813,0.792363,63248.0,63247.0,0.0113439]
[1726951370041,0.52360255,63248.0,63247.0,0.0113439]
[1726951370266,0.52360255,63248.0,63247.0,0.01141285]
[1726951371164,0.476148,63248.0,63247.0,0.01141285]
[1726951374915,0.83981286,63248.0,63247.0,0.01141285]
[1726951375177,0.86353814,63248.0,63247.0,0.01141285]
[1726951375393,0.54732314,63248.0,63247.0,0.001652]
[1726951375612,0.54732314,63248.0,63247.0,0.01141285]
[1726951376028,0.476148,63248.0,63247.0,0.01141285]
[1726951376933,0.5473134,63248.0,63247.0,0.01141285]
[1726951377140,0.792363,63248.0,63247.0,0.01141285]
[1726951378038,0.8635284,63248.0,63247.0,0.01141285]
[1726951378505,0.5473134,63248.0,63247.0,0.01141285]
[1726951379210,0.8635284,63248.0,63247.0,0.01141285]
[1726951381092,0.86352579,63248.0,63247.0,0.01141285]
[1726951382446,0.86352579,63248.0,63247.0,0.10761285]
[1726951382447,0.54731079,63248.0,63247.0,0.10761285]
[1726951383767,0.23109579,63248.0,63247.0,0.10761285]
[1726951383986,0.159933,63248.0,63247.0,0.10761285]
[1726951384469,0.20737372,63248.0,63247.0,0.10761285]
[1726951384936,0.159933,63248.0,63247.0,0.10761285]
[1726951385184,0.476148,63248.0,63247.0,0.10761285]
[1726951387535,0.52358799,63248.0,63247.0,0.10761285]
[1726951388214,0.52358866,63248.0,63247.0,0.10761285]
[1726951388431,0.523588,63248.0,63247.0,0.10761285]
[1726951389136,0.476148,63248.0,63247.0,0.10761285]
[1726951393738,0.52358726,63248.0,63247.0,0.10761285]
[1726951395926,0.52358767,63248.0,63247.0,0.10761285]
[1726951400174,0.476148,63248.0,63247.0,0.10761285]
[1726951400596,0.52358767,63248.0,63247.0,0.10761285]
[1726951401277,0.476148,63248.0,63247.0,0.10761285]
[1726951401515,0.52359188,63248.0,63247.0,0.10761285]
[1726951404911,0.52360538,63248.0,63247.0,0.10761285]
[1726951405127,0.476148,63248.0,63247.0,0.10761285]
[1726951407084,0.5236065,63248.0,63247.0,0.10761285]
[1726951407626,0.476148,63248.0,63247.0,0.10761285]
[1726951408711,0.52360785,63248.0,63247.0,0.10761285]
[1726951409139,0.476148,63248.0,63247.0,0.10761285]
[1726951411889,0.159933,63248.0,63247.0,0.10761285]
[1726951423222,0.20739851,63248.0,63247.0,0.10761285]
[1726951425312,0.159933,63248.0,63247.0,0.10761285]
[1726951428107,0.23113127,63248.0,63247.0,0.10761285]
[1726951428622,0.159933,63248.0,63247.0,0.10761285]
[1726951428844,0.23113127,63248.0,63247.0,0.10761285]
[1726951429586,0.159933,63248.0,63247.0,0.10761285]
[1726951429802,0.23113127,63248.0,63247.0,0.10761285]
[1726951432171,0.07302427,63248.0,63247.0,0.10761285]
[1726951432426,0.159933,63248.0,63247.0,0.10761285]
[1726951432668,0.20740276,63248.0,63247.0,0.10761285]
[1726951432963,0.52361776,63248.0,63247.0,0.10761285]
[1726951440378,0.20740276,63248.0,63247.0,0.10761285]
[1726951442694,0.159933,63248.0,63247.0,0.10761285]
[1726951442928,0.20739236,63248.0,63247.0,0.10761285]
[1726951444034,0.52360736,63248.0,63247.0,0.10761285]
[1726951444266,0.86356127,63248.0,63247.0,0.01141285]
[1726951444518,1.108578,63248.0,63247.0,0.01141285]
[1726951444731,0.91102678,63248.0,63247.0,0.001652]
[1726951444953,0.88726158,63248.0,63247.0,0.00996988]
[1726951445480,0.791363,63248.0,63247.0,0.00996988]
[1726951445975,0.801363,63248.0,63247.0,0.00996988]
[1726951446182,0.799363,63248.0,63247.0,0.00996988]
[1726951446399,0.805363,63248.0,63247.0,0.00996988]
[1726951446615,0.791363,63248.0,63247.0,0.00996988]
[1726951447033,0.801363,63248.0,63247.0,0.00996988]
[1726951447849,1.117578,63248.0,63247.0,0.00996988]
[1726951448051,0.91996306,63248.0,63247.0,0.00996988]
[1726951449300,0.801363,63248.0,63247.0,0.00996988]
[1726951449773,1.117578,63248.0,63247.0,0.00996988]
[1726951450276,1.28063167,63248.0,63247.0,0.00996988]
[1726951450506,1.37203167,63248.0,63247.0,0.001652]
[1726951450808,1.37203167,63248.0,63246.0,0.000826]
[1726951450809,0.81355,63247.0,63246.0,0.000826]
[1726951451052,1.38422367,63247.0,63246.0,0.000826]
[1726951451530,1.70044367,63247.0,63246.0,0.000826]
[1726951452251,1.71444367,63247.0,63246.0,0.000826]
[1726951452478,1.87414055,63247.0,63246.0,0.000826]
[1726951452969,1.71444367,63247.0,63246.0,0.000826]
[1726951453460,1.87043792,63247.0,63246.0,0.000826]
[1726951453693,1.85643792,63247.0,63246.0,0.000826]
[1726951454405,1.71444367,63247.0,63246.0,0.000826]
[1726951455157,1.73044367,63247.0,63246.0,0.000826]
[1726951459038,1.78038802,63247.0,63246.0,0.000826]
[1726951459469,1.88038802,63247.0,63246.0,0.000826]
[1726951464441,1.88204002,63247.0,63246.0,0.000826]
[1726951467630,1.83209567,63247.0,63246.0,0.000826]
[1726951480403,1.74069567,63247.0,63246.0,0.000826]
[1726951491805,1.71769567,63247.0,63246.0,0.000826]
[1726951505256,0.002,63246.0,63245.0,0.000826]
[1726951505472,0.43670623,63235.0,63230.0,0.9495026]
[1726951505687,0.71340054,63232.0,63230.0,0.9495026]
[1726951505912,0.7579219,63232.0,63230.0,0.9495026]
[1726951506337,1.3905119,63232.0,63230.0,0.000826]
[1726951506739,1.50902289,63232.0,63230.0,0.000826]
[1726951507155,1.3905119,63232.0,63230.0,0.000826]
[1726951507577,1.3955119,63232.0,63230.0,0.000826]
[1726951507833,1.49431705,63232.0,63230.0,0.000826]
[1726951508041,1.49031705,63232.0,63230.0,0.000826]
[1726951508267,1.49531705,63232.0,63230.0,0.000826]
[1726951508483,1.49531705,63232.0,63231.0,0.092926]
[1726951508925,1.4005119,63232.0,63231.0,0.092926]
[1726951509410,1.4005119,63232.0,63231.0,0.087996]
[1726951509868,1.49031705,63232.0,63231.0,0.087996]
[1726951510089,1.48531705,63232.0,63231.0,0.087996]
[1726951510280,1.49131705,63232.0,63231.0,0.087996]
[1726951510526,1.50031705,63232.0,63231.0,0.087996]
[1726951510748,1.48531705,63232.0,63231.0,0.087996]
[1726951510973,1.49431705,63232.0,63231.0,0.087996]
[1726951511200,1.50331705,63232.0,63231.0,0.087996]
[1726951511621,1.50331705,63232.0,63231.0,0.088822]
[1726951515316,1.52702289,63232.0,63231.0,0.088822]
[1726951518077,1.52697633,63232.0,63231.0,0.088822]
[1726951518743,1.50328833,63232.0,63231.0,0.088822]
[1726951518948,1.52697633,63232.0,63231.0,0.088822]
[1726951521634,1.4085119,63232.0,63231.0,0.088822]
[1726951523849,1.4101639,63232.0,63231.0,0.088822]
[1726951529320,1.52867629,63232.0,63231.0,0.088822]
[1726951529545,1.4101639,63232.0,63231.0,0.088822]
[1726951538042,1.28973767,63232.0,63231.0,0.088822]
[1726951538305,0.09076595,63232.0,63231.0,0.088822]
[1726951538568,0.019652,63232.0,63231.0,0.088822]
[1726951539063,0.010652,63232.0,63231.0,0.088822]
[1726951539286,0.007652,63232.0,63231.0,0.088822]
[1726951540445,0.001652,63232.0,63231.0,0.088822]
[1726951540676,0.165799,63232.0,63231.0,0.088822]
[1726951540935,0.001652,63232.0,63231.0,0.088822]
[1726951541452,0.002652,63232.0,63231.0,0.088822]
[1726951541897,0.004652,63232.0,63231.0,0.088822]
[1726951551979,0.004652,63232.0,63231.0,0.246972]
[1726951555802,0.004652,63232.0,63231.0,0.088822]
[1726951561508,0.004652,63232.0,63231.0,0.246972]
[1726951561927,0.004652,63232.0,63231.0,0.088822]
[1726951564405,0.004652,63232.0,63231.0,0.246972]
[1726951565604,0.004652,63232.0,63231.0,0.879572]
[1726951566462,0.002652,63232.0,63231.0,0.879572]
[1726951566954,0.001652,63232.0,63231.0,0.879572]
[1726951567597,0.001652,63232.0,63231.0,0.880572]
[1726951568505,0.001652,63232.0,63231.0,0.564272]
[1726951587034,0.001652,63232.0,63231.0,0.247972]
[1726951607873,0.001652,63232.0,63231.0,0.246972]
[1726951608092,0.001652,63232.0,63231.0,0.247972]
[1726951609888,0.001652,63232.0,63231.0,0.248972]
[1726951614826,0.001652,63232.0,63231.0,0.090822]
[1726951618919,0.159799,63232.0,63231.0,0.090822]
[1726951620052,0.001652,63232.0,63231.0,0.090822]
[1726951621113,0.159799,63232.0,63231.0,0.090822]
[1726951621345,0.91281523,63232.0,63231.0,0.002826]
[1726951622263,0.91281523,63232.0,63231.0,0.001826]
[1726951622495,0.91481523,63232.0,63231.0,0.001826]
[1726951622934,0.91281523,63232.0,63231.0,0.001826]
[1726951623314,0.91781523,63232.0,63231.0,0.000826]
[1726951623689,0.91881523,63232.0,63231.0,0.000826]
[1726951624104,0.92581523,63232.0,63231.0,0.000826]
[1726951624421,0.92781523,63232.0,63231.0,0.000826]
[1726951624630,0.91981523,63232.0,63231.0,0.000826]
[1726951624880,0.92281523,63232.0,63231.0,0.000826]
[1726951625861,0.91581523,63232.0,63231.0,0.000826]
[1726951626263,0.91981523,63232.0,63231.0,0.000826]
[1726951628711,0.92054258,63232.0,63231.0,0.000826]
[1726951634486,1.23683758,63232.0,63231.0,0.000826]
[1726951634718,1.40511812,63232.0,63231.0,0.000826]
[1726951634990,0.99162312,63232.0,63231.0,0.000826]
[1726951636152,0.87046954,63232.0,63231.0,0.000826]
[1726951636370,0.55417454,63232.0,63231.0,0.094926]
[1726951636603,0.55417454,63232.0,63231.0,0.000826]
[1726951637683,0.55117454,63232.0,63231.0,0.000826]
[1726951638088,0.54917454,63232.0,63231.0,0.000826]
[1726951638519,0.55217454,63232.0,63231.0,0.000826]
[1726951639779,0.481094,63232.0,63231.0,0.000826]
[1726951644147,0.006652,63232.0,63231.0,0.000826]
[1726951644377,0.006652,63232.0,63231.0,0.158976]
[1726951644613,0.006652,63232.0,63231.0,0.88883874]
[1726951644828,0.006652,63232.0,63231.0,0.885676]
[1726951645051,0.003652,63232.0,63231.0,0.885676]
[1726951645505,0.005652,63232.0,63231.0,0.885676]
[1726951645727,0.003652,63232.0,63231.0,0.885676]
[1726951646135,0.004652,63232.0,63231.0,0.885676]
[1726951646380,0.003652,63232.0,63231.0,0.885676]
[1726951646581,0.003652,63232.0,63231.0,0.887676]
[1726951646798,0.004652,63232.0,63231.0,0.887676]
[1726951647441,0.002652,63232.0,63231.0,0.887676]
[1726951647897,0.003652,63232.0,63231.0,0.888676]
[1726951648342,0.002652,63232.0,63231.0,0.887676]
[1726951648555,0.003652,63232.0,63231.0,0.888676]
[1726951650364,0.43740458,63241.0,63233.0,0.316287]
[1726951650583,0.15813,63239.0,63235.0,0.158139]
[1726951651939,0.27928858,63238.0,63232.0,0.316295]
[1726951652179,0.27928858,63238.0,63234.0,0.158142]
[1726951652404,0.27928858,63238.0,63235.0,0.002]
[1726951653107,0.27928858,63238.0,63234.0,0.158142]
[1726951653324,0.27928858,63238.0,63234.0,0.161142]
[1726951653754,0.27928858,63238.0,63234.0,0.158142]
[1726951653975,0.27928858,63238.0,63235.0,0.003]
[1726951654195,0.27928858,63238.0,63235.0,0.005]
[1726951654643,0.27928858,63238.0,63235.0,0.003]
[1726951655803,0.27928858,63238.0,63235.0,0.001]
[1726951656260,0.474412,63236.0,63235.0,0.001]
[1726951656487,0.790687,63236.0,63235.0,0.001]
[1726951656957,0.790687,63236.0,63235.0,0.002]
[1726951657176,0.790687,63236.0,63235.0,0.001]
[1726951657371,0.793687,63236.0,63235.0,0.001]
[1726951657620,0.158147,63232.0,63231.0,0.000826]
[1726951657839,0.27930058,63232.0,63231.0,0.000826]
[1726951659221,0.28230058,63232.0,63231.0,0.000826]
[1726951659719,0.28430058,63232.0,63231.0,0.000826]
[1726951660157,0.163147,63232.0,63231.0,0.000826]
[1726951660368,0.003,63232.0,63231.0,0.000826]
[1726951660654,0.160147,63232.0,63231.0,0.000826]
[1726951660873,0.158147,63232.0,63231.0,0.000826]
[1726951661056,0.161147,63232.0,63231.0,0.000826]
[1726951661265,0.161147,63232.0,63231.0,0.001826]
[1726951661471,0.158147,63232.0,63231.0,0.001826]
[1726951661892,0.158147,63232.0,63231.0,0.002826]
[1726951679563,0.27930058,63232.0,63231.0,0.002826]
[1726951680203,0.12115358,63232.0,63231.0,0.002826]
[1726951683753,0.27930058,63232.0,63231.0,0.002826]
[1726951693764,0.59559558,63232.0,63231.0,0.002826]
[1726951694423,0.64298206,63232.0,63231.0,0.002826]
[1726951694638,0.59559558,63232.0,63231.0,0.002826]
[1726951697377,0.64299399,63232.0,63231.0,0.002826]
[1726951697730,0.52184041,63232.0,63231.0,0.002826]
[1726951697940,0.64299399,63232.0,63231.0,0.002826]
[1726951699228,0.64300136,63232.0,63231.0,0.002826]
[1726951700250,0.59560295,63232.0,63231.0,0.002826]
[1726951702195,0.98299557,63232.0,63231.0,0.002826]
[1726951702637,0.91189795,63232.0,63231.0,0.002826]
[1726951703077,0.98299557,63232.0,63231.0,0.002826]
[1726951703278,0.91189795,63232.0,63231.0,0.002826]
[1726951703944,0.95932589,63232.0,63231.0,0.002826]
[1726951704186,0.91189795,63232.0,63231.0,0.002826]
[1726951704423,0.98299557,63232.0,63231.0,0.002826]
[1726951705098,0.98299557,63232.0,63231.0,0.001826]
[1726951705943,0.98499557,63232.0,63231.0,0.001826]
[1726951706798,0.91389795,63232.0,63231.0,0.000826]
[1726951707217,0.98599557,63232.0,63231.0,0.000826]
[1726951707639,0.91489795,63232.0,63231.0,0.000826]
[1726951707853,0.98599557,63232.0,63231.0,0.000826]
[1726951708060,0.98600066,63232.0,63231.0,0.000826]
[1726951708505,1.60514774,63232.0,63231.0,0.000826]
[1726951709371,1.60519578,63232.0,63231.0,0.000826]
[1726951710201,1.60517961,63232.0,63231.0,0.000826]
[1726951710638,1.48665171,63232.0,63231.0,0.000826]
[1726951713405,1.58144321,63232.0,63231.0,0.000826]
[1726951713822,1.48665171,63232.0,63231.0,0.000826]
[1726951716316,1.58142399,63232.0,63231.0,0.000826]
[1726951720349,1.58141334,63232.0,63231.0,0.000826]
[1726951724120,1.48665171,63232.0,63231.0,0.000826]
[1726951724344,1.58140052,63232.0,63231.0,0.000826]
[1726951726071,1.48900052,63232.0,63231.0,0.000826]
[1726951726494,0.474487,63226.0,63225.0,0.0004013]
[1726951726779,0.59565304,63226.0,63225.0,0.0004013]
[1726951727637,0.475487,63226.0,63225.0,0.0034013]
[1726951727855,0.59765304,63226.0,63225.0,0.0054013]
[1726951728515,0.59665304,63226.0,63225.0,0.0034013]
[1726951728745,0.158169,63224.0,63221.0,0.09517868]
[1726951728964,0.15817,63223.0,63221.0,0.09517868]
[1726951729880,0.15817,63223.0,63221.0,0.09717868]
[1726951730097,0.15817,63223.0,63221.0,0.09517868]
[1726951730308,0.15817,63223.0,63221.0,0.09817868]
[1726951731404,0.15817,63223.0,63221.0,0.10017868]
[1726951732291,0.316331,63225.0,63221.0,0.10017868]
[1726951732510,0.474498,63225.0,63221.0,0.10017868]
[1726951732725,0.158168,63224.0,63221.0,0.10017868]
[1726951733207,0.158168,63224.0,63221.0,0.09717868]
[1726951733863,0.158168,63224.0,63221.0,0.09517868]
[1726951734278,0.158168,63224.0,63221.0,0.09617868]
[1726951734726,0.158168,63224.0,63221.0,0.09517868]
[1726951735162,0.158168,63224.0,63221.0,0.09717868]
[1726951735840,0.158168,63224.0,63221.0,0.09517868]
[1726951736959,0.158168,63224.0,63221.0,0.09717868]
[1726951737192,0.12281804,63226.0,63221.0,0.09717868]
[1726951737393,0.158166,63225.0,63221.0,0.09717868]
[1726951738025,0.158166,63225.0,63221.0,0.09517868]
[1726951739291,0.158166,63225.0,63221.0,0.25335368]
[1726951739751,0.158168,63224.0,63221.0,0.25335368]
[1726951739950,0.158168,63224.0,63221.0,0.25435368]
[1726951740605,0.158168,63224.0,63221.0,0.25335368]
[1726951740831,0.158168,63224.0,63221.0,0.25535368]
[1726951742589,0.158168,63224.0,63221.0,0.25617968]
[1726951748944,0.158165,63225.0,63221.0,0.25617968]
[1726951749851,0.158165,63225.0,63221.0,0.25417968]
[1726951750077,0.158165,63225.0,63221.0,0.25517968]
[1726951753783,0.20556368,63225.0,63221.0,0.25517968]
[1726951754218,0.158165,63225.0,63221.0,0.25517968]
[1726951754432,0.20559711,63225.0,63221.0,0.25517968]
[1726951754844,0.158169,63224.0,63221.0,0.09700468]
[1726951755057,0.20559711,63225.0,63221.0,0.25517868]
[1726951755289,0.20724911,63225.0,63221.0,0.25517868]
[1726951755706,0.20724911,63225.0,63221.0,0.25417868]
[1726951755913,0.20724911,63225.0,63221.0,0.25617868]
[1726951756341,0.20724911,63225.0,63221.0,0.25417868]
[1726951756777,0.20724911,63225.0,63221.0,0.25517868]
[1726951757407,0.20724911,63225.0,63222.0,0.158172]
[1726951758291,0.20724911,63225.0,63221.0,0.09700468]
[1726951758498,0.20724911,63225.0,63221.0,0.25517868]
[1726951758968,0.20724911,63225.0,63221.0,0.25417868]
[1726951759383,0.20725324,63225.0,63221.0,0.25417868]
[1726951759796,0.20725324,63225.0,63222.0,0.001]
[1726951760224,0.20725324,63225.0,63221.0,0.25417868]
[1726951760665,0.20725324,63225.0,63221.0,0.25517868]
[1726951761726,0.159817,63225.0,63221.0,0.25517868]
[1726951765695,0.001652,63225.0,63222.0,0.316345]
[1726951766156,0.001652,63225.0,63223.0,0.15817]
[1726951766649,0.001652,63225.0,63224.0,0.158167]
[1726951766853,0.001652,63225.0,63222.0,0.15917]
[1726951768161,0.001652,63225.0,63222.0,0.15817]
[1726951768385,0.001652,63225.0,63223.0,0.001]
[1726951769473,0.001652,63225.0,63223.0,0.158169]
[1726951771797,0.001652,63225.0,63223.0,0.159169]
[1726951772203,0.001652,63225.0,63224.0,0.158167]
[1726951773445,0.001652,63225.0,63224.0,0.159167]
[1726951787369,0.001652,63225.0,63224.0,0.001]
[1726951788458,0.001652,63225.0,63224.0,0.159167]
[1726951792841,0.001652,63225.0,63224.0,0.001]
[1726951793059,0.001652,63225.0,63224.0,0.159167]
[1726951795050,0.04739907,63229.0,63224.0,0.159167]
[1726951795579,0.04739907,63229.0,63226.0,0.15816]
[1726951795804,0.20555607,63229.0,63224.0,0.001]
[1726951796014,0.20555607,63229.0,63224.0,0.159166]
[1726951796662,0.20955607,63229.0,63224.0,0.159166]
[1726951797319,0.20955607,63229.0,63224.0,0.158166]
[1726951797754,0.21355607,63229.0,63224.0,0.158166]
[1726951798635,0.21355607,63229.0,63225.0,0.158165]
[1726951799306,0.21355607,63229.0,63226.0,0.158161]
[1726951799307,0.008,63229.0,63226.0,0.158161]
[1726951799549,0.004,63229.0,63226.0,0.158161]
[1726951799979,0.05139907,63229.0,63226.0,0.158161]
[1726951800399,0.05539907,63229.0,63226.0,0.158161]
[1726951800834,0.20955407,63229.0,63224.0,0.158165]
[1726951801307,0.21355407,63229.0,63225.0,0.158164]
[1726951801542,0.21355721,63229.0,63225.0,0.158164]
[1726951801781,0.20555721,63229.0,63225.0,0.158164]
[1726951802219,0.21055721,63229.0,63225.0,0.158164]
[1726951802441,0.20655721,63229.0,63225.0,0.158164]
[1726951802696,0.20555721,63229.0,63225.0,0.158164]
[1726951802918,0.20655721,63229.0,63225.0,0.158164]
[1726951804174,0.04740221,63228.0,63225.0,0.158164]
[1726951804536,0.20655721,63229.0,63225.0,0.158164]
[1726951804996,0.04740221,63228.0,63225.0,0.158164]
[1726951805204,0.04740221,63228.0,63226.0,0.158162]
[1726951807467,0.04740221,63228.0,63226.0,0.160162]
[1726951808590,0.04741882,63228.0,63226.0,0.160162]
[1726951809066,0.04741882,63228.0,63226.0,0.002]
[1726951809777,0.04741882,63228.0,63226.0,0.160162]
[1726951810730,0.04741882,63227.0,63226.0,0.160162]
[1726951811709,0.04741882,63227.0,63226.0,0.158162]
[1726951811938,0.04741882,63227.0,63226.0,0.160162]
[1726951812676,0.04741882,63227.0,63226.0,0.002]
[1726951813381,0.04742382,63227.0,63226.0,0.002]
[1726951813544,0.16858986,63227.0,63226.0,0.002]
[1726951816134,0.12116604,63227.0,63226.0,0.002]
[1726951816985,0.12116604,63227.0,63226.0,0.002826]
[1726951817817,0.16859035,63227.0,63226.0,0.002826]
[1726951818374,0.12116604,63227.0,63226.0,0.002826]
[1726951819783,0.3267485,63227.0,63226.0,0.002826]
[1726951820294,0.27932604,63227.0,63226.0,0.002826]
[1726951820998,0.32674923,63227.0,63226.0,0.002826]
[1726951821936,0.32674866,63227.0,63226.0,0.002826]
[1726951822169,0.27932604,63227.0,63226.0,0.002826]
[1726951822675,0.32674857,63227.0,63226.0,0.002826]
[1726951823368,0.27932604,63227.0,63226.0,0.002826]
[1726951823599,0.32674864,63227.0,63226.0,0.002826]
[1726951829473,0.16858864,63227.0,63226.0,0.002826]
[1726951830146,0.12116604,63227.0,63226.0,0.002826]
[1726951830369,0.16858864,63227.0,63226.0,0.002826]
[1726951830808,0.12116604,63227.0,63226.0,0.002826]
[1726951831237,0.12116604,63227.0,63226.0,0.01093791]
[1726951831443,0.12116604,63227.0,63226.0,0.002826]
[1726951831656,0.16858864,63227.0,63226.0,0.0109374]
[1726951831865,0.16858864,63227.0,63226.0,0.002826]
[1726951832112,0.12116604,63227.0,63226.0,0.002826]
[1726951833639,0.16858864,63227.0,63226.0,0.002826]
[1726951833863,0.32674864,63227.0,63226.0,0.002826]
[1726951834322,0.2055826,63227.0,63226.0,0.002826]
[1726951838790,0.20558536,63227.0,63226.0,0.002826]
[1726951843224,0.04742536,63227.0,63226.0,0.002826]
[1726951843449,0.04907736,63228.0,63226.0,0.575513]
[1726951843663,0.001652,63228.0,63227.0,0.89216307]
[1726951843879,0.001652,63228.0,63227.0,1.20532]
[1726951845350,0.002652,63228.0,63227.0,1.20532]
[1726951846009,0.003652,63228.0,63227.0,1.20732]
[1726951847981,0.003652,63228.0,63227.0,0.891]
[1726951853814,0.003652,63228.0,63227.0,0.891826]
[1726951859312,0.003652,63228.0,63227.0,0.575506]
[1726951860184,0.002652,63228.0,63227.0,0.573506]
[1726951860386,0.003652,63228.0,63227.0,0.578506]
[1726951860596,0.002652,63228.0,63227.0,0.578506]
[1726951860847,0.003652,63228.0,63227.0,0.576506]
[1726951861078,0.002652,63228.0,63227.0,0.576506]
[1726951861280,0.003652,63228.0,63227.0,0.581506]
[1726951864728,0.003652,63228.0,63227.0,0.008826]
[1726951865107,0.161809,63228.0,63227.0,0.008826]
[1726951865861,0.161809,63228.0,63227.0,0.005826]
[1726951865862,0.160809,63228.0,63227.0,0.005826]
[1726951866064,0.161809,63228.0,63227.0,0.008826]
[1726951866507,0.159809,63228.0,63227.0,0.000826]
[1726951866739,0.159809,63228.0,63227.0,0.007826]
[1726951867344,0.476124,63228.0,63227.0,0.003826]
[1726951867579,0.476124,63228.0,63227.0,0.006826]
[1726951868420,0.476124,63228.0,63227.0,0.003826]
[1726951868854,0.476124,63228.0,63227.0,0.000826]
[1726951869256,0.476124,63228.0,63227.0,0.002826]
[1726951869462,0.476124,63228.0,63227.0,0.000826]
[1726951869671,0.476124,63228.0,63227.0,0.001826]
[1726951869865,0.478124,63228.0,63227.0,0.001826]
[1726951870093,0.478124,63228.0,63227.0,0.000826]
[1726951870299,0.478124,63228.0,63227.0,0.001826]
[1726951870504,0.476124,63228.0,63227.0,0.000826]
[1726951870911,0.476124,63228.0,63227.0,0.001826]
[1726951872020,0.476124,63228.0,63227.0,0.000826]
[1726951872482,0.476124,63228.0,63227.0,0.001826]
[1726951872716,0.476124,63228.0,63227.0,0.000826]
[1726951872937,0.476124,63228.0,63227.0,0.001826]
[1726951873369,0.476124,63228.0,63227.0,0.000826]
[1726951873657,0.476124,63228.0,63227.0,0.001826]
[1726951873890,0.476124,63228.0,63227.0,0.000826]
[1726951875298,0.476124,63228.0,63227.0,0.001826]
[1726951881228,0.159809,63228.0,63227.0,0.001826]
[1726951885600,0.001652,63228.0,63227.0,0.001826]
[1726951885827,0.001652,63228.0,63227.0,0.159986]
[1726951886462,0.159809,63228.0,63227.0,0.001826]
[1726951888234,0.001652,63228.0,63227.0,0.159986]
[1726951888473,0.001652,63228.0,63227.0,0.001826]
[1726951889935,0.159809,63228.0,63227.0,0.001826]
[1726951891627,0.001652,63228.0,63227.0,0.001826]
[1726951895658,0.159809,63228.0,63227.0,0.001826]
[1726951896278,0.001652,63228.0,63227.0,0.001826]
[1726951896903,0.159809,63228.0,63227.0,0.001826]
[1726951898215,0.001652,63228.0,63227.0,0.001826]
[1726951901310,0.159809,63228.0,63227.0,0.001826]
[1726951904300,0.476124,63228.0,63227.0,0.001826]
[1726951904552,0.159809,63228.0,63227.0,0.001826]
[1726951905446,0.476124,63228.0,63227.0,0.001826]
[1726951907270,0.159809,63228.0,63227.0,0.001826]
[1726951910424,0.20727104,63228.0,63227.0,0.001826]
[1726951913387,0.159809,63228.0,63227.0,0.001826]
[1726951914506,0.001652,63228.0,63227.0,0.159986]
[1726951914727,0.001652,63228.0,63227.0,0.257386]
[1726951914934,0.001652,63228.0,63227.0,0.099226]
[1726951919536,0.001652,63228.0,63227.0,0.001826]
[1726951929679,0.159809,63228.0,63227.0,0.001826]
[1726951942200,0.001652,63228.0,63227.0,0.001826]
[1726951951323,0.159809,63228.0,63227.0,0.001826]
[1726951958509,0.001652,63228.0,63227.0,0.001826]
[1726951969341,0.001652,63228.0,63227.0,0.159986]
[1726951970247,0.001652,63228.0,63227.0,0.001826]
[1726951980915,0.04912056,63228.0,63227.0,0.001826]
[1726951981131,0.20727756,63228.0,63227.0,0.001826]
[1726951982051,0.3284436,63228.0,63227.0,0.001826]
[1726951985299,0.32844625,63228.0,63227.0,0.001826]
[1726951988282,0.28097504,63228.0,63227.0,0.001826]
[1726951988692,0.32844625,63228.0,63227.0,0.001826]
[1726951989513,0.28097504,63228.0,63227.0,0.001826]
[1726951989887,0.32844625,63228.0,63227.0,0.001826]
[1726951990953,0.28097504,63228.0,63227.0,0.001826]
[1726951991172,0.32843543,63228.0,63227.0,0.001826]
[1726951992232,0.28097504,63228.0,63227.0,0.001826]
[1726951992437,0.32843543,63228.0,63227.0,0.001826]
[1726951993053,0.28097504,63228.0,63227.0,0.001826]
[1726951998366,0.32843543,63228.0,63227.0,0.001826]
[1726951998800,0.64475043,63228.0,63227.0,0.001826]
[1726951999229,0.32843543,63228.0,63227.0,0.001826]
[1726952004737,0.64475043,63228.0,63227.0,0.001826]
[1726952009749,0.52358439,63228.0,63227.0,0.001826]
[1726952011289,0.52357941,63228.0,63227.0,0.001826]
[1726952013069,0.476124,63228.0,63227.0,0.001826]
[1726952015695,0.159809,63228.0,63227.0,0.001826]
[1726952025372,0.20726123,63228.0,63227.0,0.001826]
[1726952025605,0.2309826,63228.0,63227.0,0.001826]
[1726952025808,0.159809,63228.0,63227.0,0.001826]
[1726952026932,0.23098571,63228.0,63227.0,0.001826]
[1726952027584,0.159809,63228.0,63227.0,0.001826]
[1726952028937,0.476124,63228.0,63227.0,0.001826]
[1726952029164,0.86361339,63228.0,63227.0,0.001826]
[1726952029429,0.792439,63228.0,63227.0,0.001826]
[1726952029630,1.36280767,63228.0,63227.0,0.001826]
[1726952030983,1.36280767,63228.0,63227.0,0.000826]
[1726952031438,1.36680767,63228.0,63227.0,0.000826]
[1726952031866,1.37780767,63228.0,63227.0,0.000826]